fUST/lending_fUST_20250908
["ID","MTS","AMOUNT","RATE_DAILY","PERIOD"]
[384308513,1757331049510,-480.0,0.00013972,2]
[384308515,1757331049520,-480.0,0.00013972,2]
[384308517,1757331049529,-483.60057331,0.00013972,2]
[384308519,1757331049538,-480.0,0.00013972,2]
[384308521,1757331049548,-480.0,0.00013972,2]
[384308523,1757331049557,-480.0,0.00013972,2]
[384308525,1757331049567,-480.0,0.00013972,2]
[384308527,1757331049576,-484.40766558,0.00013972,2]
[384308529,1757331049585,-480.0,0.00013972,2]
[384308531,1757331049594,-481.80670087,0.00013972,2]
[384308533,1757331049603,-480.0,0.00013972,2]
[384308535,1757331049612,-480.0,0.00013972,2]
[384308537,1757331049622,-480.0,0.00013972,2]
[384308539,1757331049631,-480.0,0.00013972,2]
[384308541,1757331049640,-480.0,0.00013972,2]
[384308542,1757331049649,-480.0,0.00013972,2]
[384308544,1757331049660,-480.0,0.00013972,2]
[384308546,1757331049670,-485.35502067,0.00013972,2]
[384308548,1757331049680,-441.49473526,0.00013972,2]
[384308551,1757331049689,-480.0,0.00013972,2]
[384308552,1757331049698,-480.0,0.00013972,2]
[384308555,1757331049708,-480.0,0.00013972,2]
[384308556,1757331049718,-246.13224258,0.00013972,2]
[384308558,1757331049729,-480.0,0.00013972,2]
[384308560,1757331049738,-480.0,0.00013972,2]
[384308562,1757331049748,-227.07264621,0.00013972,2]
[384308564,1757331049757,-480.0,0.00013972,2]
[384308566,1757331049767,-480.0,0.00013972,2]
[384308568,1757331049776,-480.0,0.00013972,2]
[384308570,1757331049785,-480.0,0.00013972,2]
[384308572,1757331049794,-483.07171759,0.00013972,2]
[384308574,1757331049804,-151.0,0.00013972,2]
[384308576,1757331049813,-151.0,0.00013972,2]
[384308578,1757331049823,-480.0,0.00013972,2]
[384308580,1757331049832,-480.0,0.00013972,2]
[384308581,1757331049842,-480.0,0.00013972,2]
[384308582,1757331049851,-480.0,0.00013972,2]
[384308583,1757331049861,-480.0,0.00013972,2]
[384308584,1757331049871,-483.82767266,0.00013972,2]
[384308585,1757331049882,-480.0,0.00013972,2]
[384308586,1757331049892,-480.0,0.00013972,2]
[384308587,1757331049902,-480.0,0.00013972,2]
[384308588,1757331049912,-277.528535,0.00013972,2]
[384308589,1757331049922,-480.0,0.00013972,2]
[384308590,1757331049932,-209.44,0.00013972,2]
[384308591,1757331049942,-484.0878355,0.00013972,2]
[384308592,1757331049951,-480.0,0.00013972,2]
[384308593,1757331049961,-477.70971268,0.00013972,2]
[384308594,1757331049970,-483.73262415,0.00013972,2]
[384308595,1757331049979,-497.36,0.00013972,2]
[384308596,1757331049989,-486.43584343,0.00013972,2]
[384308597,1757331049998,-480.0,0.00013972,2]
[384308598,1757331050007,-480.0,0.00013972,2]
[384308599,1757331050020,-480.0,0.00013972,2]
[384308600,1757331050030,-480.97278075,0.00013972,2]
[384308601,1757331050039,-480.0,0.00013972,2]
[384308603,1757331050048,-207.16798855,0.00013972,2]
[384308605,1757331050058,-480.0,0.00013972,2]
[384308607,1757331050068,-480.0,0.00013972,2]
[384308609,1757331050077,-292.57470248,0.00013972,2]
[384308611,1757331050086,-480.0,0.00013972,2]
[384308623,1757331050196,-480.0,0.00013972,2]
[384308625,1757331050206,-480.0,0.00013972,2]
[384308627,1757331050215,-480.0,0.00013972,2]
[384308629,1757331050225,-480.0,0.00013972,2]
[384308631,1757331050235,-480.0,0.00013972,2]
[384308633,1757331050245,-480.0,0.00013972,2]
[384308635,1757331050254,-480.0,0.00013972,2]
[384308637,1757331050263,-480.0,0.00013972,2]
[384308639,1757331050273,-533.98335601,0.00013972,2]
[384308641,1757331050282,-480.0,0.00013972,2]
[384308643,1757331050291,-480.0,0.00013972,2]
[384308645,1757331050301,-483.96995014,0.00013972,2]
[384308647,1757331050310,-484.65485009,0.00013972,2]
[384308649,1757331050320,-482.57274412,0.00013972,2]
[384308651,1757331050329,-480.0,0.00013972,2]
[384308653,1757331050339,-480.0,0.00013972,2]
[384308655,1757331050349,-480.0,0.00013972,2]
[384308657,1757331050358,-497.17,0.00013972,2]
[384308659,1757331050367,-480.0,0.00013972,2]
[384308661,1757331050377,-480.0,0.00013972,2]
[384308663,1757331050389,-480.0,0.00013972,2]
[384308665,1757331050398,-480.0,0.00013972,2]
[384308667,1757331050407,-480.0,0.00013972,2]
[384308669,1757331050416,-480.0,0.00013972,2]
[384308671,1757331050426,-480.0,0.00013972,2]
[384308673,1757331050435,-480.0,0.00013972,2]
[384308675,1757331050444,-480.0,0.00013972,2]
[384308677,1757331050454,-480.0,0.00013972,2]
[384308679,1757331050465,-480.0,0.00013972,2]
[384308681,1757331050475,-480.0,0.00013972,2]
[384308683,1757331050484,-480.0,0.00013972,2]
[384308685,1757331050493,-480.0,0.00013972,2]
[384308687,1757331050503,-480.0,0.00013972,2]
[384308689,1757331050511,-480.0,0.00013972,2]
[384308691,1757331050521,-480.0,0.00013972,2]
[384308693,1757331050531,-480.0,0.00013972,2]
[384308695,1757331050540,-480.0,0.00013972,2]
[384308697,1757331050549,-480.0,0.00013972,2]
[384308699,1757331050558,-480.0,0.00013972,2]
[384308701,1757331050567,-480.0,0.00013972,2]
[384308703,1757331050577,-480.0,0.00013972,2]
[384308705,1757331050586,-480.0,0.00013972,2]
[384308707,1757331050595,-480.0,0.00013972,2]
[384308709,1757331050604,-336.57208003,0.00013972,2]
[384308711,1757331050613,-480.0,0.00013972,2]
[384308713,1757331050622,-178.92,0.00013972,2]
[384308715,1757331050631,-480.0,0.00013972,2]
[384308717,1757331050641,-480.0,0.00013972,2]
[384308719,1757331050650,-261.83162992,0.00013972,2]
[384308721,1757331050659,-480.0,0.00013972,2]
[384308723,1757331050668,-480.0,0.00013972,2]
[384308724,1757331050677,-480.0,0.00013972,2]
[384308727,1757331050687,-480.0,0.00013972,2]
[384308728,1757331050696,-480.0,0.00013972,2]
[384308730,1757331050706,-480.0,0.00013972,2]
[384308732,1757331050715,-480.0,0.00013972,2]
[384308734,1757331050724,-480.0,0.00013972,2]
[384308736,1757331050734,-480.0,0.00013972,2]
[384308738,1757331050744,-480.0,0.00013972,2]
[384308740,1757331050754,-481.21176642,0.00013972,2]
[384308742,1757331050763,-480.0,0.00013972,2]
[384308744,1757331050773,-480.0,0.00013972,2]
[384308746,1757331050782,-480.0,0.00013972,2]
[384308748,1757331050791,-480.0,0.00013972,2]
[384308750,1757331050801,-480.0,0.00013972,2]
[384308752,1757331050810,-480.0,0.00013972,2]
[384308754,1757331050819,-483.44918461,0.00013972,2]
[384308756,1757331050828,-480.0,0.00013972,2]
[384308758,1757331050837,-484.38603467,0.00013972,2]
[384308760,1757331050847,-480.0,0.00013972,2]
[384308762,1757331050856,-480.0,0.00013972,2]
[384308764,1757331050865,-480.0,0.00013972,2]
[384308766,1757331050874,-480.0,0.00013972,2]
[384308768,1757331050883,-480.0,0.00013972,2]
[384308770,1757331050893,-480.0,0.00013972,2]
[384308772,1757331050902,-480.0,0.00013972,2]
[384308774,1757331050911,-480.0,0.00013972,2]
[384308776,1757331050920,-480.0,0.00013972,2]
[384308778,1757331050930,-480.0,0.00013972,2]
[384308780,1757331050940,-480.0,0.00013972,2]
[384308782,1757331050949,-480.0,0.00013972,2]
[384308784,1757331050958,-480.0,0.00013972,2]
[384308786,1757331050967,-1000.0,0.00013972,2]
[384308788,1757331050977,-584.63232908,0.00013972,2]
[384308790,1757331050987,-480.0,0.00013972,2]
[384308792,1757331050996,-480.0,0.00013972,2]
[384308794,1757331051006,-480.0,0.00013972,2]
[384308796,1757331051016,-480.0,0.00013972,2]
[384308798,1757331051025,-480.0,0.00013972,2]
[384308800,1757331051034,-480.0,0.00013972,2]
[384308802,1757331051043,-480.0,0.00013972,2]
[384308804,1757331051052,-480.0,0.00013972,2]
[384308806,1757331051061,-480.0,0.00013972,2]
[384308808,1757331051070,-480.0,0.00013972,2]
[384308810,1757331051080,-480.0,0.00013972,2]
[384308812,1757331051089,-484.1147318,0.00013972,2]
[384308814,1757331051097,-480.0,0.00013972,2]
[384308816,1757331051106,-480.0,0.00013972,2]
[384308818,1757331051115,-480.0,0.00013972,2]
[384308820,1757331051124,-480.0,0.00013972,2]
[384308822,1757331051133,-480.0,0.00013972,2]
[384308823,1757331051142,-480.0,0.00013972,2]
[384308825,1757331051151,-480.0,0.00013972,2]
[384308828,1757331051161,-486.73062602,0.00013972,2]
[384308829,1757331051170,-480.0,0.00013972,2]
[384308831,1757331051179,-480.0,0.00013972,2]
[384308833,1757331051188,-480.0,0.00013972,2]
[384308835,1757331051198,-485.30181214,0.00013972,2]
[384308837,1757331051208,-480.0,0.00013972,2]
[384308839,1757331051217,-704.63,0.00013972,2]
[384308841,1757331051227,-480.0,0.00013972,2]
[384308843,1757331051236,-480.0,0.00013972,2]
[384308845,1757331051246,-480.0,0.00013972,2]
[384308847,1757331051255,-473.70932456,0.00013972,2]
[384308849,1757331051264,-600.21822192,0.00013972,2]
[384308851,1757331051274,-480.0,0.00013972,2]
[384308853,1757331051284,-480.0,0.00013972,2]
[384308855,1757331051294,-480.0,0.00013972,2]
[384308857,1757331051303,-480.0,0.00013972,2]
[384308859,1757331051314,-480.0,0.00013972,2]
[384308861,1757331051323,-480.0,0.00013972,2]
[384308863,1757331051335,-480.0,0.00013972,2]
[384308865,1757331051345,-480.0,0.00013972,2]
[384308867,1757331051354,-480.0,0.00013972,2]
[384308869,1757331051364,-480.0,0.00013972,2]
[384308871,1757331051373,-480.0,0.00013972,2]
[384308873,1757331051383,-480.0,0.00013972,2]
[384308875,1757331051397,-525.16,0.00013972,2]
[384308877,1757331051407,-480.0,0.00013972,2]
[384308879,1757331051416,-480.0,0.00013972,2]
[384308881,1757331051426,-480.0,0.00013972,2]
[384308883,1757331051437,-480.0,0.00013972,2]
[384308885,1757331051446,-480.0,0.00013972,2]
[384308887,1757331051455,-589.2933777,0.00013972,2]
[384308889,1757331051467,-480.0,0.00013972,2]
[384308891,1757331051476,-480.0,0.00013972,2]
[384308893,1757331051486,-480.0,0.00013972,2]
[384308895,1757331051495,-480.0,0.00013972,2]
[384308897,1757331051505,-480.0,0.00013972,2]
[384308899,1757331051514,-480.0,0.00013972,2]
[384308901,1757331051523,-480.0,0.00013972,2]
[384308903,1757331051532,-480.0,0.00013972,2]
[384308905,1757331051541,-151.0,0.00013972,2]
[384308907,1757331051551,-480.0,0.00013972,2]
[384308909,1757331051561,-483.46746576,0.00013972,2]
[384308911,1757331051571,-480.0,0.00013972,2]
[384308913,1757331051579,-480.0,0.00013972,2]
[384308915,1757331051588,-480.0,0.00013972,2]
[384308916,1757331051598,-480.0,0.00013972,2]
[384308918,1757331051608,-480.0,0.00013972,2]
[384308920,1757331051617,-480.0,0.00013972,2]
[384308922,1757331051626,-201.13170623,0.00013972,2]
[384308924,1757331051635,-480.0,0.00013972,2]
[384308926,1757331051644,-480.0,0.00013972,2]
[384308928,1757331051654,-480.0,0.00013972,2]
[384308930,1757331051663,-2110.74,0.00013972,2]
[384308932,1757331051672,-519.079227,0.00013972,2]
[384308934,1757331051682,-480.0,0.00013972,2]
[384308936,1757331051691,-519.079227,0.00013972,2]
[384308938,1757331051700,-519.079227,0.00013972,2]
[384308940,1757331051709,-519.079227,0.00013972,2]
[384308942,1757331051719,-483.16147639,0.00013972,2]
[384308944,1757331051729,-480.0,0.00013972,2]
[384308946,1757331051738,-480.0,0.00013972,2]
[384308948,1757331051748,-480.0,0.00013972,2]
[384308950,1757331051758,-480.0,0.00013972,2]
[384308952,1757331051767,-627.92,0.00013972,2]
[384308954,1757331051776,-480.0,0.00013972,2]
[384308955,1757331051785,-480.0,0.00013972,2]
[384308957,1757331051795,-480.0,0.00013972,2]
[384308959,1757331051804,-480.0,0.00013972,2]
[384308961,1757331051813,-206.264424,0.00013972,2]
[384308963,1757331051823,-480.0,0.00013972,2]
[384308965,1757331051832,-480.0,0.00013972,2]
[384308967,1757331051841,-480.0,0.00013972,2]
[384308969,1757331051850,-480.0,0.00013972,2]
[384308971,1757331051860,-480.0,0.00013972,2]
[384308973,1757331051869,-480.0,0.00013972,2]
[384308975,1757331051879,-480.0,0.00013972,2]
[384308976,1757331051888,-480.0,0.00013972,2]
[384308977,1757331051897,-480.0,0.00013972,2]
[384308978,1757331051906,-267.58050914,0.00013972,2]
[384308979,1757331051915,-480.0,0.00013972,2]
[384308980,1757331051925,-480.0,0.00013972,2]
[384308981,1757331051934,-284.08381469,0.00013972,2]
[384308982,1757331051944,-480.0,0.00013972,2]
[384308983,1757331051953,-502.25993573,0.00013972,2]
[384308984,1757331051962,-489.15698194,0.00013972,2]
[384308985,1757331051971,-484.86599763,0.00013972,2]
[384308986,1757331051981,-480.0,0.00013972,2]
[384308987,1757331051991,-482.964674,0.00013972,2]
[384308988,1757331052000,-480.0,0.00013972,2]
[384308989,1757331052009,-480.0,0.00013972,2]
[384308990,1757331052018,-480.0,0.00013972,2]
[384308991,1757331052027,-480.0,0.00013972,2]
[384308992,1757331052036,-480.0,0.00013972,2]
[384308993,1757331052046,-480.0,0.00013972,2]
[384308994,1757331052055,-480.0,0.00013972,2]
[384308995,1757331052064,-480.0,0.00013972,2]
[384308996,1757331052073,-480.0,0.00013972,2]
[384308997,1757331052082,-480.0,0.00013972,2]
[384308998,1757331052091,-480.0,0.00013972,2]
[384309000,1757331052101,-480.0,0.00013972,2]
[384309002,1757331052110,-480.0,0.00013972,2]
[384309004,1757331052119,-480.0,0.00013972,2]
[384309006,1757331052127,-480.0,0.00013972,2]
[384309008,1757331052137,-488.36842577,0.00013972,2]
[384309010,1757331052146,-480.0,0.00013972,2]
[384309012,1757331052155,-480.0,0.00013972,2]
[384309014,1757331052165,-480.0,0.00013972,2]
[384309016,1757331052173,-1443.1018891,0.00013972,2]
[384309032,1757331052328,-471.3281109,0.00013972,2]
[384309034,1757331052337,-81.14548915,0.00013972,2]
[384309069,1757331052677,-480.0,0.00013698,2]
[384309071,1757331052687,-480.0,0.00013698,2]
[384309073,1757331052697,-59.7209802,0.00013972,2]
[384309075,1757331052708,-339.13353065,0.00013972,2]
[384309077,1757331052718,-480.0,0.00013972,2]
[384309079,1757331052728,-480.0,0.00013972,2]
[384309081,1757331052737,-590.54570935,0.00013972,2]
[384309084,1757331052748,-132.86429065,0.00013972,2]
[384309086,1757331052757,-277.56070935,0.00013972,2]
[384309088,1757331052768,-202.43929065,0.00013972,2]
[384309090,1757331052777,-480.0,0.00013972,2]
[384309092,1757331052786,-421.55870955,0.00013972,2]
[384309095,1757331052808,-58.44129045,0.00013972,2]
[384309097,1757331052817,-480.0,0.00013972,2]
[384309099,1757331052826,-480.0,0.00013972,2]
[384309101,1757331052835,-480.0,0.00013972,2]
[384309103,1757331052845,-480.0,0.00013972,2]
[384309105,1757331052855,-480.0,0.00013972,2]
[384309107,1757331052864,-480.0,0.00013972,2]
[384309109,1757331052873,-563.03015498,0.00013972,2]
[384309111,1757331052882,-480.0,0.00013972,2]
[384309112,1757331052891,-480.0,0.00013972,2]
[384309114,1757331052900,-480.0,0.00013972,2]
[384309116,1757331052909,-533.17,0.00013972,2]
[384309118,1757331052918,-480.0,0.00013972,2]
[384309120,1757331052927,-480.0,0.00013972,2]
[384309122,1757331052936,-583.70449405,0.00013972,2]
[384309124,1757331052945,-480.0,0.00013972,2]
[384309126,1757331052955,-480.0,0.00013972,2]
[384309128,1757331052964,-480.0,0.00013972,2]
[384309130,1757331052973,-480.0,0.00013972,2]
[384309132,1757331052982,-480.0,0.00013972,2]
[384309134,1757331052991,-539.61,0.00013972,2]
[384309136,1757331053000,-484.5709022,0.00013972,2]
[384309138,1757331053009,-482.28967182,0.00013972,2]
[384309140,1757331053019,-480.0,0.00013972,2]
[384309142,1757331053028,-480.0,0.00013972,2]
[384309144,1757331053038,-480.0,0.00013972,2]
[384309146,1757331053046,-480.0,0.00013972,2]
[384309147,1757331053056,-480.0,0.00013972,2]
[384309149,1757331053066,-480.0,0.00013972,2]
[384309151,1757331053075,-484.64116382,0.00013972,2]
[384309153,1757331053085,-609.76225338,0.00013972,2]
[384309155,1757331053095,-480.0,0.00013972,2]
[384309157,1757331053104,-485.18643052,0.00013972,2]
[384309159,1757331053113,-480.0,0.00013972,2]
[384309161,1757331053122,-480.0,0.00013972,2]
[384309163,1757331053132,-480.0,0.00013972,2]
[384309165,1757331053141,-515.43114204,0.00013972,2]
[384309347,1757331094350,43800.0,0.00013348,2]
[384309348,1757331094375,592.0599739,0.00013348,2]
[384309349,1757331094399,10000.01,0.00013348,2]
[384309350,1757331094422,10000.01,0.00013348,2]
[384309351,1757331094444,10000.01,0.00013348,2]
[384309352,1757331094465,10000.01,0.00013348,2]
[384309353,1757331094488,10000.01,0.00013348,2]
[384309354,1757331094509,10000.01,0.00013348,2]
[384309355,1757331094531,10000.01,0.00013348,2]
[384309356,1757331094553,10000.01,0.00013348,2]
[384309357,1757331094576,10000.01,0.00013348,2]
[384309358,1757331111873,424.62,0.00012329,2]
[384309359,1757331122563,353.85,0.00012329,2]
[384309360,1757331127190,5742.58303742,0.00013082,2]
[384309361,1757331133179,294.87,0.00012329,2]
[384309362,1757331136466,384.2527963,0.00013082,2]
[384309363,1757331143618,245.73,0.00012329,2]
[384309364,1757331154606,204.77,0.00012329,2]
[384309365,1757331165210,170.64,0.00012329,2]
[384309366,1757331175696,853.24,0.00012329,2]
[384309375,1757331495382,300.0,0.00013079,2]
[384309376,1757331520155,967.35717935,0.00013115,2]
[384309377,1757331544723,58.09698693,0.00013115,2]
[384309378,1757331544746,909.26019242,0.00013115,2]
[384309380,1757331568782,967.35717935,0.00013115,2]
[384309381,1757331593630,967.35717935,0.00013115,2]
[384309383,1757331618078,967.35717935,0.00013115,2]
[384309384,1757331642834,967.35717935,0.00013115,2]
[384309387,1757331668619,967.35717935,0.00013115,2]
[384309388,1757331692588,475.04472591,0.00013115,2]
[384309392,1757331934746,856.1456662,0.00012453,2]
[384309395,1757332068445,-1200.0,0.00013345,2]
[384309396,1757332068473,-300.0,0.00013345,2]
[384309397,1757332068501,-1200.0,0.00013345,2]
[384309398,1757332068528,-300.0,0.00013346,2]
[384309399,1757332068556,-300.0,0.00013346,2]
[384309400,1757332068584,-300.0,0.00013346,2]
[384309401,1757332068611,-300.0,0.00013346,2]
[384309402,1757332076320,-1290.74980758,0.00013347,2]
[384309403,1757332076454,-10000.01,0.00013347,2]
[384309404,1757332076549,-10000.01,0.00013347,2]
[384309405,1757332076681,-10000.01,0.00013347,2]
[384309406,1757332076826,-10000.01,0.00013347,2]
[384309407,1757332076946,-1290.79980758,0.00013347,2]
[384309408,1757332076969,-7418.41038484,0.00013347,2]
[384309409,1757332077227,-500.0,0.00013347,2]
[384309410,1757332077256,-500.0,0.00013347,2]
[384309411,1757332077285,-500.0,0.00013347,2]
[384309412,1757332077315,-500.0,0.00013347,2]
[384309413,1757332077344,-500.0,0.00013347,2]
[384309414,1757332077371,-500.0,0.00013347,2]
[384309415,1757332077398,-500.0,0.00013347,2]
[384309416,1757332077427,-500.0,0.00013347,2]
[384309417,1757332077455,-500.0,0.00013347,2]
[384309418,1757332077485,-500.0,0.00013347,2]
[384309419,1757332077619,-481.7940963,0.00013347,2]
[384309420,1757332077648,-432.70519835,0.00013347,2]
[384309421,1757332077676,-500.0,0.00013347,2]
[384309422,1757332077705,-500.0,0.00013347,2]
[384309423,1757332077735,-500.0,0.00013347,2]
[384309424,1757332077767,-636.87441657,0.00013347,2]
[384309425,1757332077795,-310.0,0.00013347,2]
[384309426,1757332077825,-504.80411102,0.00013347,2]
[384309427,1757332077857,-500.0,0.00013347,2]
[384309428,1757332077886,-500.0,0.00013347,2]
[384309429,1757332078010,-500.0,0.00013347,2]
[384309430,1757332078040,-318.49769497,0.00013347,2]
[384309431,1757332078070,-500.0,0.00013347,2]
[384309432,1757332078100,-500.0,0.00013347,2]
[384309433,1757332078130,-500.0,0.00013347,2]
[384309434,1757332078634,-366.81916738,0.00013348,2]
[384309435,1757332078656,-5363.01461006,0.00013348,2]
[384309436,1757332078672,-10000.01,0.00013348,2]
[384309437,1757332078693,-10000.01,0.00013348,2]
[384309438,1757332078708,-10000.01,0.00013348,2]
[384309439,1757332092817,300.0,0.00013214,2]
[384309440,1757332111134,300.0,0.00013214,2]
[384309441,1757332119953,300.0,0.00013214,2]
[384309442,1757332136937,300.0,0.00013214,2]
[384309443,1757332141531,950.0,0.00025,30]
[384309444,1757332146715,300.0,0.00013214,2]
[384309445,1757332163207,169.72035555,0.00013116,2]
[384309446,1757332173097,723.97151967,0.00013116,2]
[384309474,1757332232749,-967.35717935,0.00013248,2]
[384309476,1757332232762,-2214.54323596,0.00013248,2]
[384309478,1757332232772,-618.09958469,0.00013335,2]
[384309482,1757332232803,-581.90041531,0.00013335,2]
[384309484,1757332232815,-2214.54323596,0.00013336,2]
[384309485,1757332232824,-300.0,0.00013347,2]
[384309487,1757332232834,-300.0,0.00013347,2]
[384309489,1757332232844,-177864.78989205,0.00013348,2]
[384309572,1757332238678,-1013.59656656,0.00013348,2]
[384309574,1757332238690,-7251.85444772,0.00013348,2]
[384309576,1757332238701,-12803.83762464,0.00013348,2]
[384309578,1757332238712,-943.90771769,0.00013348,2]
[384309580,1757332238721,-1744.16304173,0.00013348,2]
[384309582,1757332238732,-1643.59735509,0.00013365,2]
[384309587,1757332238783,-5022.77235001,0.00013365,2]
[384309589,1757332238792,-2030.296672,0.00013375,2]
[384309590,1757332238803,-17751.65239272,0.00013375,2]
[384309592,1757332238814,-250.0,0.00013375,2]
[384309594,1757332238824,-151.0,0.00013375,2]
[384309596,1757332238833,-151.0,0.00013375,2]
[384309598,1757332238842,-151.0,0.00013375,2]
[384309599,1757332238853,-250.0,0.00013375,2]
[384309601,1757332238863,-151.0,0.00013375,2]
[384309603,1757332238871,-151.0,0.00013375,2]
[384309604,1757332238883,-151.0,0.00013375,2]
[384309606,1757332238892,-250.0,0.00013375,2]
[384309608,1757332238901,-178.57357894,0.00013375,2]
[384309610,1757332238911,-151.0,0.00013375,2]
[384309611,1757332238920,-250.0,0.00013375,2]
[384309613,1757332238929,-514.35169207,0.00013375,2]
[384309615,1757332238939,-151.0,0.00013375,2]
[384309617,1757332238949,-250.0,0.00013375,2]
[384309618,1757332238958,-151.0,0.00013375,2]
[384309620,1757332238967,-250.0,0.00013375,2]
[384309622,1757332238977,-151.0,0.00013375,2]
[384309624,1757332238987,-250.0,0.00013375,2]
[384309625,1757332238996,-151.0,0.00013375,2]
[384309626,1757332239006,-151.0,0.00013375,2]
[384309628,1757332239015,-250.0,0.00013375,2]
[384309630,1757332239024,-151.0,0.00013375,2]
[384309632,1757332239034,-303.3926338,0.00013375,2]
[384309633,1757332239043,-151.0,0.00013375,2]
[384309635,1757332239052,-151.0,0.00013375,2]
[384309637,1757332239062,-151.0,0.00013375,2]
[384309639,1757332239071,-151.0,0.00013375,2]
[384309641,1757332239080,-151.0,0.00013375,2]
[384309643,1757332239090,-151.0,0.00013375,2]
[384309645,1757332239099,-151.0,0.00013375,2]
[384309647,1757332239108,-151.0,0.00013375,2]
[384309649,1757332239117,-202.50353211,0.00013375,2]
[384309651,1757332239127,-151.0,0.00013375,2]
[384309653,1757332239136,-151.0,0.00013375,2]
[384309654,1757332239146,-151.0,0.00013375,2]
[384309656,1757332239155,-151.0,0.00013375,2]
[384309658,1757332239164,-151.0,0.00013375,2]
[384309660,1757332239174,-151.0,0.00013375,2]
[384309662,1757332239183,-151.0,0.00013375,2]
[384309664,1757332239193,-151.0,0.00013375,2]
[384309666,1757332239202,-151.0,0.00013375,2]
[384309668,1757332239211,-151.0,0.00013375,2]
[384309670,1757332239220,-151.0,0.00013375,2]
[384309672,1757332239230,-2214.54323596,0.00013423,2]
[384309674,1757332239240,-2105.41764886,0.0001343,2]
[384309676,1757332239249,-2183.31810187,0.00013485,2]
[384309677,1757332239259,-2214.54323596,0.00013511,2]
[384309678,1757332239269,-2264.10087164,0.0001354,2]
[384309679,1757332239279,-2452.62052435,0.00013595,2]
[384309680,1757332239288,-22011.2226421,0.00013598,2]
[384309681,1757332239298,-2214.54323596,0.00013598,2]
[384309682,1757332239307,-300.0,0.00013614,2]
[384309683,1757332239316,-300.0,0.00013614,2]
[384309684,1757332239326,-300.0,0.00013614,2]
[384309685,1757332239335,-300.0,0.00013614,2]
[384309686,1757332239344,-300.0,0.00013614,2]
[384309687,1757332239354,-300.0,0.00013614,2]
[384309688,1757332239363,-300.0,0.00013614,2]
[384309689,1757332239374,-300.0,0.00013614,2]
[384309690,1757332239383,-300.0,0.00013614,2]
[384309691,1757332239393,-300.0,0.00013614,2]
[384309692,1757332239402,-300.0,0.00013614,2]
[384309693,1757332239412,-300.0,0.00013614,2]
[384309694,1757332239422,-300.0,0.00013614,2]
[384309695,1757332239431,-300.0,0.00013614,2]
[384309696,1757332239441,-300.0,0.00013614,2]
[384309697,1757332239450,-600.0,0.00013614,2]
[384309698,1757332239460,-157.0,0.00013614,2]
[384309699,1757332239469,-157.0,0.00013614,2]
[384309700,1757332239480,-157.0,0.00013614,2]
[384309701,1757332239489,-157.0,0.00013614,2]
[384309702,1757332239498,-157.0,0.00013614,2]
[384309703,1757332239508,-500.0,0.00013614,2]
[384309704,1757332239517,-157.0,0.00013614,2]
[384309705,1757332239527,-308.0,0.00013614,2]
[384309706,1757332239536,-186.0,0.00013614,2]